[Event "13th All African Rapid-ch Women 2024"]
[Site "Accra"]
[Date "2024.03.10"]
[Round "1.9"]
[White "Tsinjoviniavo, Aina Mahasambatra"]
[Black "Mbatha, Constance"]
[Result "0-1"]
[ECO "C41"]
[WhiteElo "1681"]
[BlackElo "1799"]
[Annotator "NA RC"]
[PlyCount "61"]
[EventDate "2024.03.07"]
[EventType "rapid"]
[EventCountry "GHA"]
[SourceTitle "playchess.com"]
[Source "ChessBase"]
[SourceQuality "1"]
[TimeControl "900+10"]

1. e4 {[%emt 0:00:01]} e5 {[%emt 0:00:01]} 2. Nf3 {[%emt 0:00:02]} d6 {[%emt 0:00:01]} 3. d4 {[%emt 0:00:05]} exd4 {[%emt 0:00:01]} 4. Nxd4 {[%emt 0:00:02]} h6 {[%emt 0:00:01]} 5. Nc3 {[%emt 0:00:12]} Nf6 {[%emt 0:00:03]} 6. Be2 {[%emt 0:00:20]} Bd7 {[%emt 0:00:01]} 7. O-O {[%emt 0:00:04]} Be7 {[%emt 0:00:01]} 8. Bf4 {[%emt 0:00:21]} Nc6 {[%emt 0:00:05]} 9. Nf5 {[%emt 0:00:58]} Bxf5 {[%emt 0:01:09]} 10. exf5 {[%emt 0:00:02]} O-O {[%emt 0:00:16]} 11. Bc4 {[%emt 0:00:26]} Ne5 {[%emt 0:01:06]} 12. Bb3 {[%emt 0:00:51]} c6 {[%emt 0:00:07]} 13. Re1 {[%emt 0:00:20]} Qc7 {[%emt 0:00:04]} 14. Qe2 {[%emt 0:00:21]} Rae8 {[%emt 0:00:17]} 15. Rad1 {[%emt 0:00:38]} a6 {[%emt 0:01:18]} 16. Kf1 {[%emt 0:00:46]} b5 {[%emt 0:00:05]} 17. Bxe5 {[%emt 0:01:06]} dxe5 {[%emt 0:00:19]} 18. Qxe5 {[%emt 0:00:07]} Qb6 {[%emt 0:00:32]} 19. Ne4 {[%emt 0:02:30]} Nxe4 {[%emt 0:02:08]} 20. Rxe4 {[%emt 0:00:25]} Qb7 {[%emt 0:02:45]} 21. Qf4 {[%emt 0:01:09]} Bf6 {[%emt 0:00:53]} 22. c3 {[%emt 0:00:26]} c5 {[%emt 0:00:40]} 23. Rde1 {[%emt 0:02:46]} Rxe4 {[%emt 0:00:05]} 24. Rxe4 {[%emt 0:00:24]} c4 {[%emt 0:00:02]} 25. Bd1 {[%emt 0:00:25]} Qd7 {[%emt 0:00:20]} 26. Ke1 {[%emt 0:01:40]} Rd8 {[%emt 0:00:45]} 27. Bh5 {[%emt 0:01:19]} Bg5 {[%emt 0:00:19]} 28. Qe5 {[%emt 0:01:50]} Qd2+ {[%emt 0:00:44]} 29. Kf1 {[%emt 0:00:02]} Qd3+ {[%emt 0:00:08]} 30. Be2 {[%emt 0:00:32]} Qb1+ {[%emt 0:00:10]} 31. Bd1 {[%emt 0:00:10]} 0-1

[Event "13th All African Rapid-ch Women 2024"]
[Site "Accra"]
[Date "2024.03.10"]
[Round "2.1"]
[White "Wafa, Shahenda"]
[Black "Laubscher, Anzel"]
[Result "1-0"]
[ECO "B76"]
[WhiteElo "2083"]
[BlackElo "1820"]
[Annotator "NA RC"]
[PlyCount "71"]
[EventDate "2024.03.07"]
[EventType "rapid"]
[EventCountry "GHA"]
[SourceTitle "playchess.com"]
[Source "ChessBase"]
[SourceQuality "1"]
[TimeControl "900+10"]

1. e4 {[%emt 0:00:02]} c5 {[%emt 0:00:01]} 2. Nf3 {[%emt 0:00:03]} d6 {[%emt 0:00:01]} 3. d4 {[%emt 0:00:04]} cxd4 {[%emt 0:00:02]} 4. Nxd4 {[%emt 0:00:03]} Nf6 {[%emt 0:00:02]} 5. Nc3 {[%emt 0:00:02]} g6 {[%emt 0:00:03]} 6. f3 {[%emt 0:00:25]} Bg7 {[%emt 0:00:03]} 7. Be3 {[%emt 0:00:03]} O-O {[%emt 0:00:07]} 8. Qd2 {[%emt 0:00:03]} Nc6 {[%emt 0:00:02]} 9. g4 {[%emt 0:00:02]} Bxg4 {[%emt 0:00:13]} 10. fxg4 {[%emt 0:00:03]} Nxg4 {[%emt 0:00:03]} 11. Nxc6 {[%emt 0:02:24]} bxc6 {[%emt 0:00:04]} 12. Bd4 {[%emt 0:00:42]} e5 {[%emt 0:04:19]} 13. Bg1 {[%emt 0:00:12]} f5 {[%emt 0:05:02]} 14. Qg2 {[%emt 0:01:08]} Qc7 {[%emt 0:02:02]} 15. h3 {[%emt 0:03:22]} Nh6 {[%emt 0:00:28]} 16. O-O-O {[%emt 0:00:48]} Rab8 {[%emt 0:00:47]} 17. Bc4+ {[%emt 0:00:25]} Kh8 {[%emt 0:00:20]} 18. Qd2 {[%emt 0:00:43]} Qb7 {[%emt 0:01:21]} 19. Bb3 {[%emt 0:00:10]} c5 {[%emt 0:00:46]} 20. Qd5 {[%emt 0:00:41]} fxe4 {[%emt 0:00:47]} 21. Qxb7 {[%emt 0:07:15]} Rxb7 {[%emt 0:00:03]} 22. Nxe4 {[%emt 0:00:00]} Nf5 {[%emt 0:00:36]} 23. Be6 {[%emt 0:00:00]} Nd4 {[%emt 0:01:00]} 24. Bxd4 {[%emt 0:00:00]} exd4 {[%emt 0:00:28]} 25. Bd5 {[%emt 0:00:00]} Rb6 {[%emt 0:00:15]} 26. Rhf1 {[%emt 0:00:00]} Bh6+ {[%emt 0:00:16]} 27. Kb1 {[%emt 0:00:00]} Rfb8 {[%emt 0:00:05]} 28. b3 {[%emt 0:00:00]} a5 {[%emt 0:00:10]} 29. a4 {[%emt 0:00:00]} Rf8 {[%emt 0:00:17]} 30. Rxf8+ {[%emt 0:00:00]} Bxf8 {[%emt 0:00:27]} 31. Rf1 {[%emt 0:01:40]} Bg7 {[%emt 0:00:00]} 32. Rf7 {[%emt 0:00:00]} Rb8 {[%emt 0:00:04]} 33. Kc1 {[%emt 0:00:00]} h6 {[%emt 0:00:08]} 34. Kd2 {[%emt 0:00:00]} Rd8 {[%emt 0:00:08]} 35. Ra7 {[%emt 0:00:00]} Rf8 {[%emt 0:00:14]} 36. Rxa5 {[%emt 0:00:00]} 1-0

[Event "13th All African Rapid-ch Women 2024"]
[Site "Accra"]
[Date "2024.03.10"]
[Round "2.2"]
[White "PEACE SAMSON"]
[Black "Mongeli, Sasha"]
[Result "1-0"]
[ECO "B13"]
[WhiteElo "1870"]
[BlackElo "1858"]
[Annotator "NA"]
[PlyCount "111"]
[EventDate "2024.03.07"]
[EventType "rapid"]
[EventCountry "GHA"]
[SourceTitle "playchess.com"]
[Source "ChessBase"]
[SourceQuality "1"]
[TimeControl "900+10"]

1. e4 {[%emt 0:00:03]} c6 {[%emt 0:00:01]} 2. d4 {[%emt 0:00:01]} d5 {[%emt 0:00:01]} 3. exd5 {[%emt 0:00:02]} cxd5 {[%emt 0:00:02]} 4. Bd3 {[%emt 0:00:02]} Nc6 {[%emt 0:00:01]} 5. c3 {[%emt 0:00:04]} Nf6 {[%emt 0:00:03]} 6. h3 {[%emt 0:00:01]} g6 {[%emt 0:01:09]} 7. Nf3 {[%emt 0:00:03]} Bg7 {[%emt 0:00:02]} 8. Be3 {[%emt 0:00:02]} O-O {[%emt 0:00:04]} 9. Qd2 {[%emt 0:01:13]} a6 {[%emt 0:00:47]} 10. g4 {[%emt 0:00:45]} Na5 {[%emt 0:00:30]} 11. Ne5 {[%emt 0:00:26]} b5 {[%emt 0:00:36]} 12. Na3 {[%emt 0:00:46]} Nc4 {[%emt 0:00:36]} 13. Naxc4 {[%emt 0:00:20]} dxc4 {[%emt 0:00:23]} 14. Bc2 {[%emt 0:00:11]} Bb7 {[%emt 0:00:13]} 15. Rg1 {[%emt 0:00:06]} Ne4 {[%emt 0:01:16]} 16. Bxe4 {[%emt 0:00:24]} Bxe4 {[%emt 0:00:03]} 17. g5 {[%emt 0:02:27]} Bxe5 {[%emt 0:00:19]} 18. dxe5 {[%emt 0:00:02]} Qxd2+ {[%emt 0:04:19]} 19. Kxd2 {[%emt 0:00:03]} Rfd8+ {[%emt 0:00:09]} 20. Bd4 {[%emt 0:00:01]} e6 {[%emt 0:00:18]} 21. a3 {[%emt 0:00:09]} Kg7 {[%emt 0:00:57]} 22. Ke3 {[%emt 0:00:04]} Bd3 {[%emt 0:00:11]} 23. Rad1 {[%emt 0:00:12]} Bf5 {[%emt 0:00:21]} 24. h4 {[%emt 0:00:24]} Rd5 {[%emt 0:00:18]} 25. Rd2 {[%emt 0:00:24]} Rad8 {[%emt 0:00:20]} 26. Rgd1 {[%emt 0:00:05]} Bd3 {[%emt 0:00:19]} 27. f4 {[%emt 0:00:21]} h5 {[%emt 0:00:24]} 28. Bb6 {[%emt 0:00:43]} Rb8 {[%emt 0:00:21]} 29. Bc7 {[%emt 0:00:08]} Rb7 {[%emt 0:00:27]} 30. Bd6 {[%emt 0:00:03]} a5 {[%emt 0:01:45]} 31. a4 {[%emt 0:06:24]} b4 {[%emt 0:02:09]} 32. cxb4 {[%emt 0:01:01]} axb4 {[%emt 0:00:04]} 33. b3 {[%emt 0:00:46]} Ra7 {[%emt 0:01:05]} 34. Bxb4 {[%emt 0:00:16]} Rb7 {[%emt 0:00:19]} 35. bxc4 {[%emt 0:00:09]} Bxc4 {[%emt 0:00:03]} 36. Rxd5 {[%emt 0:00:44]} Bxd5 {[%emt 0:00:02]} 37. Bd2 {[%emt 0:01:22]} Rb3+ {[%emt 0:00:34]} 38. Kd4 {[%emt 0:00:28]} Rb2 {[%emt 0:00:28]} 39. Be1 {[%emt 0:00:11]} Ra2 {[%emt 0:00:14]} 40. a5 {[%emt 0:00:02]} Ra4+ {[%emt 0:00:05]} 41. Kc5 {[%emt 0:00:07]} Rxf4 {[%emt 0:00:05]} 42. Ra1 {[%emt 0:00:06]} Re4 {[%emt 0:00:14]} 43. Kd6 {[%emt 0:00:07]} Rc4 {[%emt 0:00:14]} 44. a6 {[%emt 0:00:09]} Rc6+ {[%emt 0:00:12]} 45. Kd7 {[%emt 0:00:02]} Rc2 {[%emt 0:00:21]} 46. a7 {[%emt 0:00:03]} Ba8 {[%emt 0:00:02]} 47. Kd6 {[%emt 0:00:13]} Rc6+ {[%emt 0:00:09]} 48. Kd7 {[%emt 0:00:05]} Rc2 {[%emt 0:00:01]} 49. Kd8 {[%emt 0:00:27]} f6 {[%emt 0:00:08]} 50. gxf6+ {[%emt 0:00:09]} Kf7 {[%emt 0:00:07]} 51. Rd1 {[%emt 0:00:10]} Bd5 {[%emt 0:00:13]} 52. Rxd5 {[%emt 0:00:03]} exd5 {[%emt 0:00:02]} 53. a8=Q {[%emt 0:00:07]} d4 {[%emt 0:00:06]} 54. Qd5+ {[%emt 0:00:09]} Kf8 {[%emt 0:00:01]} 55. Bb4+ {[%emt 0:00:07]} Rc5 {[%emt 0:00:06]} 56. Bxc5# {[%emt 0:00:02]} 1-0

[Event "13th All African Rapid-ch Women 2024"]
[Site "Accra"]
[Date "2024.03.10"]
[Round "2.3"]
[White "Mbatha, Constance"]
[Black "Nassr, Lina"]
[Result "1/2-1/2"]
[ECO "B33"]
[WhiteElo "1799"]
[BlackElo "2080"]
[Annotator "ChessBase"]
[PlyCount "183"]
[EventDate "2024.03.07"]
[EventType "rapid"]
[EventCountry "GHA"]
[SourceTitle "playchess.com"]
[Source "ChessBase"]
[SourceQuality "1"]
[TimeControl "900+10"]

1. e4 {[%emt 0:00:01]} c5 {[%emt 0:00:02]} 2. Nf3 {[%emt 0:00:02]} e6 {[%emt 0:00:02]} 3. d4 {[%emt 0:00:02]} cxd4 {[%emt 0:00:03]} 4. Nxd4 {[%emt 0:00:01]} Nf6 {[%emt 0:00:05]} 5. Nc3 {[%emt 0:00:02]} Nc6 {[%emt 0:00:07]} 6. Be2 {[%emt 0:00:13]} Bb4 {[%emt 0:00:05]} 7. Nxc6 {[%emt 0:00:40]} bxc6 {[%emt 0:00:20]} 8. Bd3 {[%emt 0:00:13]} d5 {[%emt 0:00:06]} 9. exd5 {[%emt 0:00:22]} cxd5 {[%emt 0:00:24]} 10. Bd2 {[%emt 0:00:07]} O-O {[%emt 0:00:07]} 11. O-O {[%emt 0:00:02]} e5 {[%emt 0:01:27]} 12. Bg5 {[%emt 0:00:23]} Bb7 {[%emt 0:01:26]} 13. Ne2 {[%emt 0:01:37]} e4 {[%emt 0:03:08]} 14. Bb5 {[%emt 0:00:02]} Qb6 {[%emt 0:00:16]} 15. Ba4 {[%emt 0:00:11]} Bc5 {[%emt 0:00:32]} 16. c3 {[%emt 0:00:38]} Ng4 {[%emt 0:02:41]} 17. Bh4 {[%emt 0:00:29]} Ne5 {[%emt 0:01:24]} 18. b4 {[%emt 0:00:26]} Bd6 {[%emt 0:00:17]} 19. Bg3 {[%emt 0:00:01]} Rad8 {[%emt 0:00:44]} 20. Bb3 {[%emt 0:00:37]} Bb8 {[%emt 0:00:07]} 21. Nd4 {[%emt 0:00:45]} Qg6 {[%emt 0:00:17]} 22. f4 {[%emt 0:00:56]} Nd3 {[%emt 0:01:22]} 23. Bc2 {[%emt 0:02:45]} Nb2 {[%emt 0:00:31]} 24. Qe2 {[%emt 0:00:27]} Nc4 {[%emt 0:00:03]} 25. Bb3 {[%emt 0:00:12]} Nb6 {[%emt 0:01:28]} 26. Qe3 {[%emt 0:01:33]} f5 {[%emt 0:00:25]} 27. a4 {[%emt 0:00:26]} Nc4 {[%emt 0:00:08]} 28. Qe2 {[%emt 0:00:17]} Rc8 {[%emt 0:00:06]} 29. Rac1 {[%emt 0:00:17]} a6 {[%emt 0:00:31]} 30. a5 {[%emt 0:00:11]} Ba7 {[%emt 0:00:08]} 31. Kh1 {[%emt 0:00:06]} Qd6 {[%emt 0:00:24]} 32. Qh5 {[%emt 0:00:35]} g6 {[%emt 0:00:07]} 33. Qg5 {[%emt 0:00:27]} Nd2 {[%emt 0:00:20]} 34. Rfe1 {[%emt 0:00:44]} Bxd4 {[%emt 0:00:08]} 35. cxd4 {[%emt 0:01:04]} Nxb3 {[%emt 0:00:06]} 36. Rcd1 {[%emt 0:00:00]} Rc3 {[%emt 0:00:28]} 37. Bf2 {[%emt 0:00:29]} Rfc8 {[%emt 0:00:14]} 38. h4 {[%emt 0:04:07]} Qd8 {[%emt 0:00:30]} 39. Qh6 {[%emt 0:00:00]} Rc1 {[%emt 0:00:21]} 40. h5 {[%emt 0:00:00]} R1c6 {[%emt 0:00:05]} 41. Re3 {[%emt 0:00:00]} g5 {[%emt 0:00:18]} 42. Qxg5+ {[%emt 0:00:00]} Qxg5 {[%emt 0:00:01]} 43. fxg5 {[%emt 0:00:50]} Nxd4 {[%emt 0:00:10]} 44. Rxd4 {[%emt 0:00:00]} f4 {[%emt 0:00:14]} 45. Re1 {[%emt 0:00:00]} Rc4 {[%emt 0:00:11]} 46. Rxc4 {[%emt 0:00:00]} Rxc4 {[%emt 0:00:01]} 47. Bc5 {[%emt 0:00:00]} d4 {[%emt 0:00:17]} 48. Rf1 {[%emt 0:00:00]} f3 {[%emt 0:00:32]} 49. gxf3 {[%emt 0:00:00]} exf3 {[%emt 0:00:08]} 50. Kh2 {[%emt 0:00:00]} Rc2+ {[%emt 0:00:07]} 51. Kg3 {[%emt 0:00:00]} d3 {[%emt 0:00:36]} 52. Be3 {[%emt 0:00:00]} Rg2+ {[%emt 0:00:00]} 53. Kf4 {[%emt 0:00:00]} Rb2 {[%emt 0:00:00]} 54. Rd1 {[%emt 0:00:00]} Rxb4+ {[%emt 0:00:00]} 55. Kg3 {[%emt 0:00:00]} Rb3 {[%emt 0:00:15]} 56. Rd2 {[%emt 0:00:00]} Kf7 {[%emt 0:00:08]} 57. Kf4 {[%emt 0:00:00]} Rb4+ {[%emt 0:00:06]} 58. Kg3 {[%emt 0:00:00]} Be4 {[%emt 0:00:05]} 59. h6 {[%emt 0:00:00]} Ke6 {[%emt 0:00:16]} 60. Kf4 {[%emt 0:00:00]} Bd5+ {[%emt 0:00:17]} 61. Kg3 {[%emt 0:00:00]} Rb3 {[%emt 0:00:05]} 62. Kf4 {[%emt 0:00:00]} Ra3 {[%emt 0:00:06]} 63. Kg4 {[%emt 0:00:00]} Be4 {[%emt 0:00:22]} 64. Kf4 {[%emt 0:00:00]} Kd5 {[%emt 0:00:05]} 65. Kg3 {[%emt 0:00:00]} Rxa5 {[%emt 0:00:02]} 66. Kf2 {[%emt 0:00:00]} Ra1 {[%emt 0:00:09]} 67. Rb2 {[%emt 0:00:06]} Ke5 {[%emt 0:00:21]} 68. g6 {[%emt 0:00:10]} Bxg6 {[%emt 0:00:03]} 69. Kxf3 {[%emt 0:00:01]} Kd5 {[%emt 0:00:10]} 70. Kf2 {[%emt 0:00:11]} Kc4 {[%emt 0:00:05]} 71. Bd2 {[%emt 0:00:20]} Rh1 {[%emt 0:00:21]} 72. Rb4+ {[%emt 0:00:12]} Kc5 {[%emt 0:00:06]} 73. Rb2 {[%emt 0:00:23]} Rh2+ {[%emt 0:00:06]} 74. Ke3 {[%emt 0:00:02]} Re2+ {[%emt 0:00:04]} 75. Kf3 {[%emt 0:00:11]} a5 {[%emt 0:00:14]} 76. Be3+ {[%emt 0:00:50]} Kc4 {[%emt 0:00:23]} 77. Rxe2 {[%emt 0:00:36]} dxe2 {[%emt 0:00:02]} 78. Kxe2 {[%emt 0:00:01]} Kb3 {[%emt 0:00:10]} 79. Kd1 {[%emt 0:00:14]} Kb2 {[%emt 0:00:17]} 80. Bd4+ {[%emt 0:00:01]} Kb1 {[%emt 0:00:07]} 81. Bc5 {[%emt 0:00:02]} a4 {[%emt 0:00:09]} 82. Ba3 {[%emt 0:00:07]} Ka2 {[%emt 0:00:10]} 83. Bd6 {[%emt 0:00:03]} Kb2 {[%emt 0:00:10]} 84. Be5+ {[%emt 0:00:04]} Kb3 {[%emt 0:00:16]} 85. Kc1 {[%emt 0:00:02]} a3 {[%emt 0:00:09]} 86. Ba1 {[%emt 0:00:12]} Bc2 {[%emt 0:00:11]} 87. Bf6 {[%emt 0:00:29]} a2 {[%emt 0:00:09]} 88. Ba1 {[%emt 0:00:01]} Bg6 {[%emt 0:00:03]} 89. Bg7 {[%emt 0:00:02]} Kc4 {[%emt 0:00:06]} 90. Kb2 {[%emt 0:00:12]} Bb1 {[%emt 0:00:02]} 91. Bf6 {[%emt 0:00:12]} Kd5 {[%emt 0:00:05]} 92. Bg5 {[%emt 0:00:01]} 1/2-1/2

[Event "13th All African Rapid-ch Women 2024"]
[Site "Accra"]
[Date "2024.03.10"]
[Round "2.4"]
[White "Nakabo, Peninah"]
[Black "Vilhete, Vania Fausto Da T."]
[Result "1-0"]
[ECO "B22"]
[WhiteElo "1836"]
[BlackElo "1829"]
[Annotator "NA RC"]
[PlyCount "97"]
[EventDate "2024.03.07"]
[EventType "rapid"]
[EventCountry "GHA"]
[SourceTitle "playchess.com"]
[Source "ChessBase"]
[SourceQuality "1"]
[TimeControl "900+10"]

1. e4 {[%emt 0:00:02]} c5 {[%emt 0:00:01]} 2. c3 {[%emt 0:00:01]} d5 {[%emt 0:00:10]} 3. exd5 {[%emt 0:00:03]} Qxd5 {[%emt 0:00:02]} 4. d4 {[%emt 0:00:02]} cxd4 {[%emt 0:00:03]} 5. cxd4 {[%emt 0:00:02]} e6 {[%emt 0:00:15]} 6. Nc3 {[%emt 0:00:07]} Qd8 {[%emt 0:00:03]} 7. Nf3 {[%emt 0:00:06]} Nf6 {[%emt 0:00:03]} 8. Be2 {[%emt 0:00:13]} Be7 {[%emt 0:00:02]} 9. O-O {[%emt 0:00:03]} O-O {[%emt 0:00:02]} 10. h3 {[%emt 0:00:34]} a6 {[%emt 0:00:06]} 11. Be3 {[%emt 0:00:03]} b5 {[%emt 0:00:08]} 12. a3 {[%emt 0:00:04]} Bb7 {[%emt 0:00:03]} 13. Rc1 {[%emt 0:00:28]} Nc6 {[%emt 0:00:29]} 14. Bd3 {[%emt 0:01:48]} Rc8 {[%emt 0:00:11]} 15. Qe2 {[%emt 0:00:12]} Qd7 {[%emt 0:00:11]} 16. Rfd1 {[%emt 0:00:04]} Rfd8 {[%emt 0:00:02]} 17. Bb1 {[%emt 0:00:05]} Nd5 {[%emt 0:03:04]} 18. Ne5 {[%emt 0:01:36]} Qe8 {[%emt 0:00:39]} 19. Nxd5 {[%emt 0:00:57]} exd5 {[%emt 0:00:40]} 20. Nxc6 {[%emt 0:01:51]} Rxc6 {[%emt 0:00:38]} 21. Rxc6 {[%emt 0:00:20]} Bxc6 {[%emt 0:01:29]} 22. Rc1 {[%emt 0:00:02]} Bd6 {[%emt 0:00:39]} 23. Qh5 {[%emt 0:00:32]} g6 {[%emt 0:00:19]} 24. Qf3 {[%emt 0:00:10]} Rc8 {[%emt 0:02:38]} 25. Bh6 {[%emt 0:00:58]} Bd7 {[%emt 0:01:28]} 26. Rd1 {[%emt 0:01:27]} Qe6 {[%emt 0:00:19]} 27. Kf1 {[%emt 0:00:45]} Re8 {[%emt 0:00:08]} 28. Ba2 {[%emt 0:00:56]} Bc6 {[%emt 0:00:17]} 29. Bd2 {[%emt 0:01:42]} Qe4 {[%emt 0:01:44]} 30. Qxe4 {[%emt 0:00:08]} Rxe4 {[%emt 0:00:13]} 31. Be3 {[%emt 0:00:13]} Re8 {[%emt 0:00:50]} 32. Rc1 {[%emt 0:00:15]} Bb7 {[%emt 0:00:07]} 33. Bb1 {[%emt 0:00:17]} Rc8 {[%emt 0:00:12]} 34. Rxc8+ {[%emt 0:00:04]} Bxc8 {[%emt 0:00:02]} 35. Ke2 {[%emt 0:00:25]} Kf8 {[%emt 0:00:04]} 36. Bg5 {[%emt 0:00:16]} f5 {[%emt 0:00:18]} 37. Ba2 {[%emt 0:00:46]} Bb7 {[%emt 0:00:06]} 38. Bf6 {[%emt 0:00:30]} Bf4 {[%emt 0:00:17]} 39. Kd3 {[%emt 0:00:15]} Kf7 {[%emt 0:00:18]} 40. Be5 {[%emt 0:00:03]} Bxe5 {[%emt 0:00:17]} 41. dxe5 {[%emt 0:00:02]} f4 {[%emt 0:00:18]} 42. Kd4 {[%emt 0:00:20]} Ke6 {[%emt 0:00:04]} 43. g3 {[%emt 0:00:09]} fxg3 {[%emt 0:00:13]} 44. fxg3 {[%emt 0:00:02]} g5 {[%emt 0:00:18]} 45. g4 {[%emt 0:00:14]} h6 {[%emt 0:00:04]} 46. Bb1 {[%emt 0:00:01]} Ke7 {[%emt 0:01:15]} 47. Bf5 {[%emt 0:00:04]} a5 {[%emt 0:01:35]} 48. b4 {[%emt 0:00:12]} axb4 {[%emt 0:00:09]} 49. axb4 {[%emt 0:00:02]} 1-0

[Event "13th All African Rapid-ch Women 2024"]
[Site "Accra"]
[Date "2024.03.10"]
[Round "2.5"]
[White "Junior, Ednasia"]
[Black "Marochkina, Nadezhda Valerevna"]
[Result "1-0"]
[ECO "B11"]
[WhiteElo "1915"]
[BlackElo "1819"]
[Annotator "NA RC"]
[PlyCount "113"]
[EventDate "2024.03.07"]
[EventType "rapid"]
[EventCountry "GHA"]
[SourceTitle "playchess.com"]
[Source "ChessBase"]
[SourceQuality "1"]
[TimeControl "900+10"]

1. e4 {[%emt 0:00:01]} c6 {[%emt 0:00:02]} 2. Nf3 {[%emt 0:00:02]} d5 {[%emt 0:00:02]} 3. Nc3 {[%emt 0:00:01]} d4 {[%emt 0:00:05]} 4. Ne2 {[%emt 0:00:02]} c5 {[%emt 0:00:05]} 5. d3 {[%emt 0:00:01]} Nc6 {[%emt 0:00:03]} 6. g3 {[%emt 0:00:04]} Nf6 {[%emt 0:00:39]} 7. Bg2 {[%emt 0:00:02]} e5 {[%emt 0:00:15]} 8. O-O {[%emt 0:00:07]} Be7 {[%emt 0:00:03]} 9. h3 {[%emt 0:00:34]} O-O {[%emt 0:00:03]} 10. Nh4 {[%emt 0:00:19]} Qc7 {[%emt 0:01:06]} 11. Nf5 {[%emt 0:00:45]} Bd8 {[%emt 0:00:08]} 12. f4 {[%emt 0:00:21]} exf4 {[%emt 0:02:30]} 13. Bxf4 {[%emt 0:00:20]} Qb6 {[%emt 0:00:03]} 14. Bc1 {[%emt 0:01:48]} Ne7 {[%emt 0:00:09]} 15. g4 {[%emt 0:00:30]} Re8 {[%emt 0:01:22]} 16. Qe1 {[%emt 0:00:37]} Bc7 {[%emt 0:00:38]} 17. Nxe7+ {[%emt 0:01:43]} Rxe7 {[%emt 0:00:02]} 18. Qh4 {[%emt 0:00:16]} Bd6 {[%emt 0:02:41]} 19. Bg5 {[%emt 0:01:03]} Be5 {[%emt 0:00:20]} 20. b3 {[%emt 0:01:15]} Bd7 {[%emt 0:00:21]} 21. Nf4 {[%emt 0:01:39]} Ree8 {[%emt 0:00:54]} 22. Bxf6 {[%emt 0:01:58]} Bxf6 {[%emt 0:02:49]} 23. g5 {[%emt 0:00:04]} Bd8 {[%emt 0:00:35]} 24. Rf3 {[%emt 0:01:48]} h6 {[%emt 0:04:15]} 25. Nd5 {[%emt 0:01:40]} Qg6 {[%emt 0:00:00]} 26. Raf1 {[%emt 0:00:58]} hxg5 {[%emt 0:00:00]} 27. Qg3 {[%emt 0:00:20]} Rf8 {[%emt 0:00:00]} 28. Nc7 {[%emt 0:00:58]} Rc8 {[%emt 0:00:00]} 29. Nd5 {[%emt 0:00:01]} Be6 {[%emt 0:00:00]} 30. R3f2 {[%emt 0:00:10]} b6 {[%emt 0:00:00]} 31. Qd6 {[%emt 0:00:18]} Re8 {[%emt 0:00:32]} 32. a4 {[%emt 0:00:05]} f6 {[%emt 0:00:09]} 33. Qg3 {[%emt 0:00:07]} Bxd5 {[%emt 0:00:06]} 34. exd5 {[%emt 0:00:02]} Bc7 {[%emt 0:00:00]} 35. Qg4 {[%emt 0:00:05]} Bf4 {[%emt 0:00:10]} 36. Be4 {[%emt 0:00:02]} Qh6 {[%emt 0:00:16]} 37. Kg2 {[%emt 0:00:01]} Kf7 {[%emt 0:00:09]} 38. Bf5 {[%emt 0:00:05]} Rc7 {[%emt 0:00:13]} 39. Be6+ {[%emt 0:00:01]} Ke7 {[%emt 0:00:09]} 40. Re2 {[%emt 0:00:01]} Be5 {[%emt 0:00:01]} 41. Rf5 {[%emt 0:00:05]} Rh8 {[%emt 0:00:03]} 42. Rf1 {[%emt 0:00:08]} Kd6 {[%emt 0:00:04]} 43. Qf5 {[%emt 0:00:03]} Re7 {[%emt 0:00:10]} 44. Rfe1 {[%emt 0:00:01]} Qh4 {[%emt 0:00:04]} 45. Rxe5 {[%emt 0:00:02]} Kc7 {[%emt 0:00:54]} 46. R5e4 {[%emt 0:00:03]} Qh5 {[%emt 0:00:04]} 47. Qf2 {[%emt 0:00:13]} Ree8 {[%emt 0:00:04]} 48. Qg3+ {[%emt 0:00:01]} Kb7 {[%emt 0:00:04]} 49. d6 {[%emt 0:00:23]} Rd8 {[%emt 0:00:14]} 50. Bd5+ {[%emt 0:00:05]} Ka6 {[%emt 0:00:08]} 51. Bc4+ {[%emt 0:00:04]} Kb7 {[%emt 0:00:02]} 52. Re7+ {[%emt 0:00:05]} Kc6 {[%emt 0:00:13]} 53. Bb5+ {[%emt 0:00:25]} Kd5 {[%emt 0:00:01]} 54. d7 {[%emt 0:00:08]} g4 {[%emt 0:00:11]} 55. hxg4 {[%emt 0:00:12]} Qh6 {[%emt 0:00:05]} 56. Qf3+ {[%emt 0:00:05]} Kd6 {[%emt 0:00:03]} 57. Qc6# {[%emt 0:00:09]} 1-0